bitfinex/quotes_SOLUSD_20251103
["timestamp","ask_amount","ask_price","bid_price","bid_amount"]
[1762140314753,7.03351078,180.97,180.92,0.67]
[1762140314956,27.62551078,180.97,180.92,0.67]
[1762140315189,7.03351078,180.96,180.92,0.67]
[1762140315684,20.592,180.97,180.92,0.67]
[1762140316049,27.62551078,180.97,180.92,0.67]
[1762140316282,27.62551078,180.97,180.93,19.34449787]
[1762140316488,20.592,180.97,180.93,19.34449787]
[1762140316675,7.03351078,180.95,180.93,5.52699939]
[1762140316853,56.12457043,181.01,180.93,5.52699939]
[1762140316854,7.03351078,180.94,180.93,5.52699939]
[1762140317054,7.03351078,180.94,180.91,15.01666635]
[1762140317249,7.03351078,180.92,180.91,9.48935966]
[1762140317693,67.42233847,180.92,180.91,9.48935966]
[1762140317877,57.03351078,180.92,180.91,9.48935966]
[1762140318060,67.42233847,180.92,180.91,9.48935966]
[1762140318776,50.6,180.92,180.91,9.48935966]
[1762140318983,57.63351078,180.92,180.91,9.48935966]
[1762140320092,57.03351078,180.92,180.91,9.48935966]
[1762140320387,57.63351078,180.92,180.91,9.48935966]
[1762140320889,67.42233847,180.92,180.91,9.48935966]
[1762140321984,57.63351078,180.92,180.91,9.48935966]
[1762140322506,72.94964335,180.92,180.91,9.48935966]
[1762140323368,67.42233847,180.92,180.91,9.48935966]
[1762140323764,72.94964335,180.92,180.91,9.48935966]
[1762140324461,57.63351078,180.92,180.91,9.48935966]
[1762140325261,63.16081566,180.92,180.91,9.48935966]
[1762140325583,50.6,180.92,180.91,9.48935966]
[1762140325785,57.63351078,180.92,180.91,9.48935966]
[1762140325985,72.94964335,180.92,180.91,9.48935966]
[1762140326486,67.42233847,180.92,180.91,9.48935966]
[1762140326688,57.63351078,180.92,180.91,9.48935966]
[1762140327068,63.16081566,180.92,180.91,9.48935966]
[1762140327275,57.63351078,180.92,180.91,9.48935966]
[1762140327787,72.94964335,180.92,180.91,9.48935966]
[1762140327960,67.42233847,180.92,180.91,9.48935966]
[1762140328158,57.63351078,180.92,180.91,9.48935966]
[1762140329687,27.62551078,180.92,180.91,9.48935966]
[1762140330680,93.54164335,180.92,180.91,9.48935966]
[1762140330858,93.54164335,180.92,180.91,9.38935966]
[1762140335099,77.62551078,180.92,180.91,9.38935966]
[1762140336499,78.12551078,180.92,180.91,9.38935966]
[1762140336678,77.62551078,180.92,180.91,9.38935966]
[1762140337598,83.15281566,180.92,180.91,9.38935966]
[1762140337790,83.65281566,180.92,180.91,9.38935966]
[1762140338002,93.44164335,180.92,180.91,9.38935966]
[1762140338509,80.88082769,180.92,180.91,9.38935966]
[1762140338687,87.91433847,180.92,180.91,9.38935966]
[1762140339299,93.44164335,180.92,180.91,9.38935966]
[1762140340094,77.62551078,180.92,180.91,9.38935966]
[1762140340705,70.592,180.92,180.91,9.38935966]
[1762140340874,77.62551078,180.92,180.91,9.38935966]
[1762140344410,93.44164335,180.92,180.91,9.38935966]
[1762140344707,7.03351078,180.83,180.82,5.53032624]
[1762140344910,7.03351078,180.85,180.82,5.53032624]
[1762140345079,7.03351078,180.86,180.82,19.35623045]
[1762140345282,20.592,180.88,180.83,0.37]
[1762140345511,27.62551078,180.88,180.83,0.37]
[1762140346107,7.03351078,180.87,180.83,0.37]
[1762140346293,7.03351078,180.86,180.83,0.37]
[1762140346818,7.03351078,180.86,180.84,5.52975005]
[1762140347005,7.03351078,180.85,180.84,5.52975005]
[1762140347583,7.03351078,180.85,180.84,6.19975005]
[1762140347784,7.03351078,180.86,180.84,6.19975005]
[1762140348005,20.592,180.88,180.85,0.67]
[1762140348310,27.62551078,180.88,180.85,0.67]
[1762140348804,27.62551078,180.88,180.86,5.52913856]
[1762140349606,27.62551078,180.88,180.87,0.67]
[1762140350196,27.62551078,180.88,180.85,0.67]
[1762140350400,7.03351078,180.86,180.85,0.67]
[1762140350913,7.03351078,180.86,180.85,6.19944429]
[1762140351098,7.03351078,180.86,180.85,0.67]
[1762140351284,27.62551078,180.86,180.83,0.67]
[1762140351483,7.03351078,180.84,180.83,0.67]
[1762140352417,25.37332354,180.84,180.83,0.67]
[1762140352711,4.78132354,180.84,180.83,0.67]
[1762140352878,20.592,180.86,180.83,20.02519548]
[1762140353086,14.26077071,180.91,180.84,0.67]
[1762140353087,4.78132354,180.87,180.84,0.67]
[1762140354108,4.78132354,180.87,180.85,0.67]
[1762140354323,20.592,180.88,180.85,0.67]
[1762140354610,1.94097559,180.89,180.85,0.67]
[1762140355105,22.53297559,180.89,180.86,5.52913856]
[1762140355311,1.94097559,180.88,180.85,0.67]
[1762140355614,1.94097559,180.87,180.86,0.67]
[1762140357104,1.94097559,180.88,180.86,6.19913856]
[1762140357610,1.94097559,180.88,180.87,0.67]
[1762140358424,1.94097559,180.88,180.86,5.52913856]
[1762140358590,1.94097559,180.87,180.86,0.67]
[1762140359003,1.94097559,180.87,180.86,6.19913856]
[1762140359600,1.94097559,180.88,180.86,0.67]
[1762140359910,1.94097559,180.88,180.87,0.67]
[1762140361104,1.94097559,180.88,180.82,19.35621891]
[1762140361286,1.94097559,180.88,180.85,0.67]
[1762140362194,1.94097559,180.86,180.85,0.67]
[1762140362494,20.592,180.87,180.82,19.35621891]
[1762140362692,20.592,180.87,180.85,0.67]
[1762140362887,1.94097559,180.86,180.85,0.67]
[1762140363191,1.94097559,180.86,180.79,0.1]
[1762140363520,20.592,180.82,180.79,5.63127481]
[1762140363687,22.53297559,180.82,180.8,0.67]
[1762140364003,20.592,180.85,180.8,0.67]
[1762140364189,1.94097559,180.83,180.8,0.67]
[1762140364588,20.592,180.85,180.8,0.67]
[1762140364821,22.53297559,180.85,180.8,0.67]
[1762140365039,1.94097559,180.84,180.8,0.67]
[1762140365316,1.94097559,180.82,180.8,0.67]
[1762140365727,1.94097559,180.81,180.79,0.1]
[1762140365907,0.5,180.84,180.79,0.1]
[1762140365908,1.94097559,180.8,180.79,0.1]
[1762140366296,20.592,180.8,180.79,0.79]
[1762140366510,20.592,180.82,180.79,0.79]
[1762140366716,20.592,180.82,180.79,6.32127938]
[1762140367100,50.0,180.85,180.8,0.69]
[1762140367303,1.94097559,180.83,180.81,5.53066755]
[1762140367814,3.59772145,180.86,180.82,0.69]
[1762140368011,22.53297559,180.83,180.82,0.69]
[1762140368195,20.592,180.83,180.82,0.69]
[1762140368395,22.53297559,180.83,180.82,0.69]
[1762140368595,20.592,180.83,180.82,0.69]
[1762140369339,20.592,180.83,180.82,6.22036168]
[1762140369619,22.53297559,180.83,180.82,6.22036168]
[1762140369922,22.53297559,180.83,180.82,0.69]
[1762140371312,22.53297559,180.83,180.81,5.53042397]
[1762140371519,22.53297559,180.83,180.81,6.22042397]
[1762140371914,22.53297559,180.83,180.82,0.69]
[1762140372312,1.94097559,180.83,180.79,0.1]
[1762140372536,1.94097559,180.8,180.79,0.79]
[1762140372714,3.5937624,180.83,180.79,0.1]
[1762140373036,1.94097559,180.8,180.79,0.79]
[1762140373535,1.94097559,180.8,180.79,5.63127938]
[1762140373839,1.94097559,180.8,180.79,6.32127938]
[1762140374142,70.592,180.84,180.79,6.32127938]
[1762140374454,70.592,180.84,180.79,5.63127938]
[1762140374737,1.94097559,180.8,180.79,0.1]
[1762140376006,6.03238629,180.8,180.79,0.1]
[1762140377417,1.94097559,180.8,180.79,0.1]
[1762140379336,6.02696668,180.8,180.79,0.1]
[1762140379551,11.55794013,180.8,180.79,0.1]
[1762140379713,5.52696668,180.8,180.79,0.1]
[1762140379914,1.94097559,180.8,180.79,0.1]
[1762140380749,50.0,180.81,180.79,0.1]
[1762140380953,1.94097559,180.8,180.79,0.1]
[1762140381159,20.592,180.8,180.79,5.63127938]
[1762140381314,50.5,180.86,180.79,5.63127938]
[1762140381514,50.5,180.86,180.79,0.1]
[1762140381515,1.94097559,180.8,180.79,0.1]
[1762140382315,22.53297559,180.8,180.79,0.1]
[1762140382615,20.592,180.8,180.79,0.1]
[1762140382816,1.94097559,180.8,180.79,0.79]
[1762140383219,23.03297559,180.8,180.79,0.1]
[1762140383537,1.94097559,180.8,180.79,0.1]
[1762140384242,2.44097559,180.8,180.79,0.1]
[1762140384721,1.94097559,180.8,180.79,0.1]
[1762140385242,13.76097559,180.8,180.79,0.1]
[1762140385411,38.70097559,180.8,180.79,0.1]
[1762140385608,38.70097559,180.8,180.79,0.81]
[1762140385828,38.70097559,180.8,180.79,0.1]
[1762140388238,36.76,180.8,180.79,0.1]
[1762140388439,36.76,180.8,180.79,0.81]
[1762140388440,59.29297559,180.8,180.79,0.81]
[1762140388640,59.29297559,180.8,180.78,0.1]
[1762140388641,39.20097559,180.8,180.78,0.1]
[1762140388814,52.44097559,180.79,180.78,0.1]
[1762140389420,50.0,180.79,180.78,0.1]
[1762140389642,1.94097559,180.79,180.78,0.1]
[1762140390226,52.44097559,180.79,180.78,0.1]
[1762140390432,57.97225497,180.79,180.78,0.1]
[1762140390727,52.44097559,180.79,180.78,0.1]
[1762140391347,51.94097559,180.79,180.78,0.1]
[1762140391647,52.44097559,180.79,180.78,0.1]
[1762140391820,57.97225497,180.79,180.78,0.1]
[1762140392027,51.94097559,180.79,180.78,0.1]
[1762140392224,52.44097559,180.79,180.78,0.1]
[1762140392532,51.94097559,180.79,180.78,0.1]
[1762140392738,57.47225497,180.79,180.78,0.1]
[1762140392944,22.53297559,180.76,180.75,0.1]
[1762140393147,34.35297559,180.76,180.75,0.1]
[1762140393525,34.35297559,180.76,180.75,6.34250345]
[1762140393829,34.35297559,180.76,180.75,0.1]
[1762140394451,32.412,180.76,180.75,0.1]
[1762140394756,32.412,180.76,180.75,6.34250345]
[1762140395129,34.35297559,180.76,180.75,6.34250345]
[1762140395328,20.592,180.76,180.75,6.34250345]
[1762140395549,34.35297559,180.76,180.75,6.34250345]
[1762140395921,34.35297559,180.76,180.75,0.81]
[1762140396122,34.35297559,180.76,180.75,0.82]
[1762140396744,34.35297559,180.76,180.75,0.1]
[1762140396953,34.35297559,180.76,180.75,0.82]
[1762140397752,34.35297559,180.76,180.75,6.35250345]
[1762140397954,34.35297559,180.76,180.75,0.1]
[1762140398326,34.35297559,180.76,180.75,0.82]
[1762140398827,32.412,180.76,180.75,6.35250345]
[1762140399028,34.35297559,180.76,180.75,6.35250345]
[1762140399257,59.29297559,180.76,180.75,0.1]
[1762140399430,59.29297559,180.76,180.75,0.82]
[1762140401337,59.29297559,180.76,180.75,0.1]
[1762140401657,59.29297559,180.76,180.75,0.82]
[1762140401955,59.29297559,180.76,180.75,0.1]
[1762140402769,59.79297559,180.76,180.75,0.1]
[1762140403954,109.79297559,180.76,180.75,0.1]
[1762140404472,115.32517297,180.76,180.75,0.1]
[1762140404835,115.32517297,180.76,180.64,0.72]
[1762140404836,20.592,180.7,180.64,0.72]
[1762140405038,11.82,180.69,180.65,0.72]
[1762140405569,1.94097559,180.68,180.65,0.72]
[1762140405744,20.592,180.7,180.62,5.53648543]
[1762140405745,1.94097559,180.66,180.62,5.53648543]
[1762140405945,11.82,180.65,180.62,5.53648543]
[1762140406142,11.82,180.65,180.62,19.37769902]
[1762140406461,11.82,180.65,180.63,0.72]
[1762140407478,54.35078486,180.75,180.64,1.94097559]
[1762140407639,1.94097559,180.71,180.64,1.94097559]
[1762140407840,11.8,180.7,180.65,0.72]
[1762140408145,11.8,180.7,180.66,19.3734086]
[1762140408355,13.74097559,180.7,180.66,19.3734086]
[1762140408556,13.74097559,180.7,180.67,0.72]
[1762140408746,38.68097559,180.7,180.67,0.72]
[1762140408956,36.74,180.7,180.67,0.72]
[1762140409438,36.74,180.7,180.68,5.53464688]
[1762140409855,36.74,180.7,180.68,6.25464688]
[1762140410059,36.74,180.7,180.69,0.72]
[1762140411049,24.94,180.7,180.69,6.25434058]
[1762140411243,36.74,180.7,180.69,6.25434058]
[1762140411481,24.94,180.7,180.69,6.25434058]
[1762140411773,50.0,180.77,180.69,20.09019203]
[1762140411774,1.94097559,180.76,180.69,20.09019203]
[1762140411977,1.94097559,180.73,180.7,0.72]
[1762140412445,3.03813665,180.73,180.7,0.72]
[1762140412858,20.592,180.75,180.7,0.72]
[1762140413056,3.03813665,180.73,180.71,5.53372807]
[1762140413256,23.63013665,180.73,180.71,5.53372807]
[1762140413460,3.03813665,180.72,180.71,5.53372807]
[1762140414445,23.63013665,180.73,180.71,0.72]
[1762140414668,20.592,180.73,180.71,0.72]
[1762140415964,23.63013665,180.73,180.71,0.72]
[1762140416275,3.03813665,180.72,180.69,6.25434058]
[1762140416469,3.03813665,180.72,180.7,0.72]
[1762140417050,20.592,180.73,180.7,0.72]
[1762140417247,3.03813665,180.72,180.67,19.37233629]
[1762140417445,3.03813665,180.72,180.68,0.72]
[1762140418088,3.03813665,180.69,180.64,5.53587245]
[1762140418287,3.03813665,180.67,180.64,5.53587245]
[1762140418589,3.03813665,180.67,180.63,0.72]
[1762140419360,23.63013665,180.68,180.63,0.72]
[1762140419992,20.592,180.68,180.63,0.72]
[1762140420149,8.42738912,180.75,180.65,3.03813665]
[1762140420150,20.592,180.7,180.65,3.03813665]
[1762140420352,20.592,180.68,180.66,5.5352596]
[1762140420567,20.592,180.7,180.66,9.29339625]
[1762140420775,20.592,180.7,180.67,0.72]
[1762140420952,50.0,180.75,180.67,3.75813665]
[1762140421152,20.592,180.72,180.68,0.72]
[1762140422173,23.63013665,180.72,180.68,0.72]
[1762140422361,20.592,180.72,180.68,0.72]
[1762140422671,50.0,180.78,180.69,3.03813665]
[1762140422873,3.03813665,180.76,180.7,3.03813665]
[1762140423075,3.03813665,180.76,180.71,0.72]
[1762140423264,3.03813665,180.73,180.7,0.72]
[1762140423574,20.592,180.75,180.7,0.72]
[1762140423776,3.03813665,180.72,180.7,0.72]
[1762140423978,3.03813665,180.73,180.7,0.72]
[1762140424178,3.03813665,180.71,180.69,5.53434058]
[1762140424357,21.092,180.75,180.62,9.78882769]
[1762140424358,3.03813665,180.7,180.62,9.78882769]
[1762140424556,39.95577168,180.75,180.56,16.64955462]
[1762140424557,20.592,180.65,180.56,16.64955462]
[1762140424755,20.592,180.65,180.63,0.72]
[1762140425164,20.592,180.67,180.63,0.72]
[1762140425682,20.592,180.65,180.63,0.72]
[1762140425855,20.592,180.68,180.63,0.72]
[1762140426192,20.592,180.68,180.64,19.37555358]
[1762140426411,20.592,180.72,180.64,19.37555358]
[1762140426559,3.03813665,180.73,180.67,3.03813665]
[1762140427065,50.0,180.77,180.68,3.25813665]
[1762140427256,3.03813665,180.73,180.68,0.22]
[1762140427463,3.03813665,180.73,180.64,19.37555358]
[1762140427464,50.5,180.77,180.69,0.65]
[1762140427754,23.63013665,180.74,180.69,0.65]
[1762140427960,3.03813665,180.73,180.69,0.65]
[1762140428257,3.03813665,180.73,180.7,5.53403431]
[1762140428671,3.03813665,180.73,180.71,0.65]
[1762140428877,3.03813665,180.75,180.71,0.65]
[1762140429193,20.592,180.75,180.71,0.65]
[1762140429688,3.03813665,180.72,180.68,6.18439617]
[1762140430188,20.592,180.71,180.69,6.18410407]
[1762140430566,3.03813665,180.73,180.7,0.65]
[1762140430884,20.592,180.74,180.7,0.65]
[1762140431072,23.63013665,180.74,180.7,0.65]
[1762140431379,3.03813665,180.73,180.7,0.65]
[1762140431581,20.592,180.74,180.7,0.65]
[1762140431886,3.03813665,180.73,180.7,0.65]
[1762140432064,20.592,180.74,180.7,0.65]
[1762140432266,3.03813665,180.73,180.71,5.53372807]
[1762140432466,23.63013665,180.74,180.71,5.53372807]
[1762140432669,23.63013665,180.74,180.72,0.65]
[1762140432873,20.592,180.74,180.72,0.65]
[1762140433587,23.63013665,180.76,180.72,0.65]
[1762140434274,3.03813665,180.75,180.72,6.1831563]
[1762140434894,3.03813665,180.75,180.73,0.65]
[1762140435073,3.03813665,180.74,180.66,3.03813665]
[1762140435386,3.03813665,180.72,180.68,0.65]
[1762140435575,3.03813665,180.71,180.68,0.65]
[1762140435956,6.62617893,180.72,180.68,0.65]
[1762140436472,3.03813665,180.7,180.67,5.53495322]
[1762140436688,23.63013665,180.69,180.67,5.53495322]
[1762140436990,6.62458247,180.68,180.59,5.53740517]
[1762140437188,3.03813665,180.68,180.6,3.03813665]
[1762140437392,6.6246819,180.68,180.61,3.03813665]
[1762140437571,3.03813665,180.67,180.62,0.65]
[1762140437886,3.03813665,180.66,180.62,0.65]
[1762140438390,3.03813665,180.66,180.63,5.53617892]
[1762140438778,3.03813665,180.65,180.63,5.53617892]
[1762140439189,3.03813665,180.65,180.62,5.53645084]
[1762140439400,3.03813665,180.64,180.6,5.53691037]
[1762140439695,3.03813665,180.64,180.61,0.65]
[1762140440070,20.592,180.63,180.6,5.53691037]
[1762140440264,20.592,180.63,180.6,6.18691037]
[1762140440670,20.592,180.65,180.61,0.65]
[1762140441004,3.03813665,180.64,180.6,19.37965677]
[1762140441209,20.592,180.65,180.61,0.65]
[1762140441501,3.03813665,180.66,180.61,0.65]
[1762140442094,20.592,180.67,180.61,0.65]
[1762140442295,23.63013665,180.67,180.61,0.65]
[1762140442619,23.63013665,180.67,180.62,19.37769902]
[1762140443064,3.03813665,180.66,180.62,19.37769902]
[1762140443265,3.03813665,180.66,180.63,0.65]
[1762140443493,0.5,180.71,180.63,0.65]
[1762140443494,3.03813665,180.7,180.63,0.65]
[1762140443995,50.0,180.76,180.63,0.65]
[1762140443996,3.03813665,180.71,180.64,0.55358724]
[1762140444401,3.03813665,180.71,180.65,10.43882769]
[1762140444607,3.03813665,180.71,180.66,19.3734086]
[1762140444780,50.5,180.78,180.66,19.3734086]
[1762140444781,3.58309247,180.76,180.66,20.0234086]
[1762140444984,3.03813665,180.72,180.67,0.66]
[1762140445374,3.03813665,180.7,180.67,0.66]
[1762140445587,3.58309247,180.74,180.67,0.66]
[1762140445794,3.03813665,180.71,180.67,0.66]
[1762140446088,3.58309247,180.73,180.67,0.66]
[1762140446291,3.03813665,180.71,180.67,0.66]
[1762140446501,3.03813665,180.73,180.68,19.3712641]
[1762140446809,6.62122912,180.74,180.68,19.3712641]
[1762140446986,3.03813665,180.75,180.69,0.66]
[1762140447401,3.58309247,180.74,180.69,0.66]
[1762140447612,3.03813665,180.74,180.69,0.66]
[1762140447991,3.03813665,180.73,180.69,0.66]
[1762140448309,3.03813665,180.72,180.69,0.66]
[1762140448516,3.03813665,180.72,180.7,5.53403431]
[1762140448718,3.58309247,180.76,180.69,20.03016403]
[1762140448891,3.58309247,180.75,180.69,20.03016403]
[1762140449084,3.03813665,180.72,180.69,20.03016403]
[1762140449283,3.03813665,180.72,180.7,0.66]
[1762140450142,3.03813665,180.73,180.7,0.66]
[1762140450414,3.03813665,180.71,180.69,19.37016403]
[1762140450883,3.58309247,180.75,180.7,0.66]
[1762140451088,3.03813665,180.72,180.7,0.66]
[1762140452394,3.58309247,180.75,180.69,5.53431258]
[1762140452586,3.03813665,180.7,180.67,5.53495322]
[1762140452793,3.03813665,180.7,180.63,14.49999387]
[1762140452794,3.03813665,180.68,180.65,5.53538759]
[1762140452997,3.03813665,180.66,180.61,0.66]
[1762140453201,3.03813665,180.65,180.61,6.19667415]
[1762140453502,3.03813665,180.66,180.62,0.66]
[1762140453704,3.03813665,180.67,180.62,0.66]
[1762140453911,3.03813665,180.66,180.62,0.66]
[1762140454114,3.03813665,180.66,180.61,5.53667415]
[1762140454329,3.03813665,180.64,180.59,0.66]
[1762140454518,3.03813665,180.63,180.59,0.66]
[1762140454707,3.03813665,180.64,180.6,5.53709856]
[1762140454907,3.03813665,180.64,180.6,6.19709856]
[1762140455113,3.03813665,180.64,180.58,0.66]
[1762140455327,3.03813665,180.64,180.58,6.19771181]
[1762140455510,3.03813665,180.63,180.58,6.19771181]
[1762140455704,3.03813665,180.63,180.58,20.04199135]
[1762140455924,3.58284219,180.64,180.59,0.7]
[1762140456230,50.5,180.65,180.59,0.7]
[1762140456231,3.03813665,180.63,180.59,0.7]
[1762140456421,50.5,180.65,180.59,0.7]
[1762140456623,3.03813665,180.62,180.56,0.7]
[1762140456822,3.03813665,180.62,180.57,0.7]
[1762140457026,50.0,180.65,180.57,0.7]
[1762140457211,20.592,180.62,180.57,0.7]
[1762140458642,20.592,180.62,180.58,19.38199135]
[1762140458930,105.13813665,180.66,180.58,22.420128]
[1762140459127,102.1,180.66,180.59,0.7]
[1762140459330,102.1,180.66,180.59,3.73813665]
[1762140459512,102.1,180.66,180.6,0.7]
[1762140459829,102.1,180.72,180.61,3.03813665]
[1762140460025,3.03813665,180.69,180.62,3.03813665]
[1762140460226,3.03813665,180.67,180.6,0.7]
[1762140460405,3.03813665,180.68,180.61,0.02]
[1762140460604,4.08252514,180.71,180.62,19.37769902]
[1762140460810,20.592,180.69,180.62,47.06012621]
[1762140461020,23.63013665,180.69,180.63,0.14]
[1762140461219,3.03813665,180.68,180.63,0.14]
[1762140461405,20.592,180.69,180.63,0.14]
[1762140461612,3.03813665,180.68,180.63,0.14]
[1762140461821,20.592,180.69,180.63,0.14]
[1762140461822,23.63013665,180.69,180.63,0.14]
[1762140462012,3.03813665,180.7,180.63,0.14]
[1762140462213,20.592,180.69,180.63,3.17813665]
[1762140462632,20.592,180.69,180.64,0.7]
[1762140462806,20.592,180.69,180.65,19.37448103]
[1762140463007,20.592,180.69,180.66,0.7]
[1762140463311,3.03813665,180.72,180.66,0.7]
[1762140463511,50.0,180.77,180.66,0.7]
[1762140463512,4.07997354,180.76,180.66,0.7]
[1762140463711,3.03813665,180.72,180.66,0.7]
[1762140464122,3.03813665,180.74,180.67,10.34232301]
[1762140464329,4.54996124,180.79,180.66,3.73813665]
[1762140464330,3.03813665,180.71,180.66,0.7]
[1762140464532,3.03813665,180.71,180.65,19.37448103]
[1762140464533,3.03813665,180.72,180.67,0.7]
[1762140464714,3.03813665,180.72,180.68,19.3712641]
[1762140465046,20.592,180.74,180.68,19.3712641]
[1762140465348,70.592,180.75,180.68,19.3712641]
[1762140465636,3.03813665,180.71,180.68,19.3712641]
[1762140466011,3.03813665,180.7,180.68,19.3712641]
[1762140466533,3.53813665,180.69,180.68,5.53464688]
[1762140466732,3.03813665,180.69,180.68,5.53464688]
[1762140466936,3.03813665,180.69,180.65,13.83839233]
[1762140467237,3.03813665,180.68,180.65,13.83839233]
[1762140467535,21.092,180.72,180.65,13.83839233]
[1762140467736,3.03813665,180.68,180.65,13.83839233]
[1762140468838,3.03813665,180.67,180.65,13.83839233]
[1762140469340,3.03813665,180.66,180.64,5.53587245]
[1762140469646,3.03813665,180.65,180.64,5.53587245]
[1762140469839,0.5,180.66,180.64,5.53587245]
[1762140470154,3.03813665,180.65,180.61,5.53679198]
[1762140470341,3.03813665,180.64,180.61,5.53679198]
[1762140470515,20.592,180.65,180.61,20.07877193]
[1762140471135,20.592,180.68,180.62,0.7]
[1762140471350,23.63013665,180.68,180.62,0.7]
[1762140471545,23.63013665,180.68,180.62,3.73813665]
[1762140471841,66.64955462,180.72,180.62,3.73813665]
[1762140471842,23.63013665,180.69,180.62,3.73813665]
[1762140472054,23.63013665,180.69,180.63,0.7]
[1762140472253,16.64770677,180.75,180.65,3.03813665]
[1762140472254,3.03813665,180.71,180.65,3.03813665]
[1762140472417,1.9445808,180.72,180.65,1.9445808]
[1762140472614,1.9445808,180.71,180.66,0.7]
[1762140472831,1.9445808,180.72,180.67,19.37233629]
[1762140473031,1.9445808,180.72,180.68,0.7]
[1762140473240,1.9445808,180.73,180.68,0.7]
[1762140473429,1.9445808,180.74,180.68,2.6445808]
[1762140473624,102.1,180.76,180.68,2.6445808]
[1762140473825,1.9445808,180.73,180.69,0.7]
[1762140474022,22.5365808,180.75,180.69,0.7]
[1762140474224,102.1,180.76,180.69,2.6445808]
[1762140474225,104.0445808,180.76,180.69,2.6445808]
[1762140474538,20.592,180.75,180.69,2.6445808]
[1762140474738,20.592,180.75,180.7,0.7]
[1762140474948,20.592,180.75,180.71,19.36804825]
[1762140475146,22.5365808,180.75,180.71,19.36804825]
[1762140475361,1.9445808,180.75,180.72,0.7]
[1762140475645,20.592,180.76,180.72,0.7]
[1762140475832,20.592,180.78,180.72,0.7]
[1762140476032,1.9445808,180.76,180.72,0.7]
[1762140476338,22.5365808,180.78,180.72,0.7]
[1762140476547,1.9445808,180.75,180.72,0.7]
[1762140476756,1.9445808,180.77,180.72,0.7]
[1762140476929,20.592,180.78,180.73,5.53311569]
[1762140477130,1.9445808,180.76,180.73,19.36590493]
[1762140477344,50.0,180.81,180.74,0.7]
[1762140477345,1.9445808,180.77,180.74,0.7]
[1762140477666,1.9445808,180.78,180.74,0.7]
[1762140477857,3.58241892,180.82,180.74,0.7]
[1762140478039,1.9445808,180.79,180.74,0.7]
[1762140478239,22.5365808,180.8,180.74,0.7]
[1762140478955,1.9445808,180.82,180.76,5.53219738]
[1762140479276,20.592,180.81,180.76,5.53219738]
[1762140479451,22.5365808,180.81,180.77,0.7]
[1762140480041,1.9445808,180.8,180.77,0.7]
[1762140480531,20.592,180.81,180.77,0.7]
[1762140480940,20.592,180.81,180.77,6.23162864]
[1762140481344,4.78280126,180.8,180.77,6.23162864]
[1762140481546,4.78280126,180.8,180.78,0.7]
[1762140481748,4.78280126,180.81,180.78,0.7]
[1762140482451,4.78280126,180.82,180.78,0.7]
[1762140482669,20.592,180.83,180.78,0.7]
[1762140482838,20.592,180.83,180.78,5.48280126]
[1762140483050,0.5,180.9,180.81,4.78280126]
[1762140483234,4.78280126,180.84,180.79,6.23127938]
[1762140483433,4.78280126,180.84,180.8,0.7]
[1762140484470,4.78280126,180.81,180.76,0.7]
[1762140484669,50.0,180.85,180.77,0.7]
[1762140484961,50.0,180.85,180.77,6.23167422]
[1762140484962,4.78280126,180.81,180.77,6.23167422]
[1762140485143,4.78280126,180.78,180.74,0.7]
[1762140485545,4.78280126,180.77,180.74,0.7]
[1762140485752,4.78280126,180.78,180.74,0.7]
[1762140485962,20.592,180.82,180.74,0.7]
[1762140486166,20.592,180.82,180.76,4.78280126]
[1762140486470,20.592,180.82,180.77,4.78280126]
[1762140486842,25.37480126,180.84,180.78,5.48280126]
[1762140487160,25.37480126,180.84,180.79,5.53127938]
[1762140487345,25.37480126,180.84,180.79,6.23127938]
[1762140487544,25.37480126,180.84,180.8,0.7]
[1762140487761,20.592,180.84,180.8,0.7]
[1762140488571,4.78280126,180.86,180.8,0.7]